fUSD/lending_fUSD_20240625
["ID","MTS","AMOUNT","RATE_DAILY","PERIOD"]
[330401539,1719348642394,-500.0,0.00019178,2]
[330401541,1719348642403,-500.0,0.00019178,2]
[330401543,1719348642412,-807.52,0.00019178,2]
[330401545,1719348642422,-12668.08,0.00019178,2]
[330401547,1719348642432,-2499.86,0.00019178,2]
[330401549,1719348642441,-880.5,0.00019178,2]
[330401551,1719348642451,-500.0,0.00019178,2]
[330401553,1719348642461,-647.37,0.00019178,2]
[330401555,1719348642470,-500.0,0.00019178,2]
[330401557,1719348642480,-500.0,0.00019178,2]
[330401559,1719348642489,-953.26,0.00019178,2]
[330401561,1719348642499,-500.0,0.00019178,2]
[330401563,1719348642508,-615.35,0.00019178,2]
[330401564,1719348642518,-587.5,0.00019178,2]
[330401565,1719348642527,-540.12,0.00019178,2]
[330401566,1719348642537,-500.0,0.00019178,2]
[330401567,1719348642546,-6239.07,0.00019178,2]
[330401568,1719348642555,-500.0,0.00019178,2]
[330401569,1719348642566,-660.62,0.00019178,2]
[330401570,1719348642576,-500.0,0.00019178,2]
[330401571,1719348642585,-2918.86,0.00019178,2]
[330401572,1719348642595,-1753.9,0.00019178,2]
[330401573,1719348642604,-500.0,0.00019178,2]
[330401574,1719348642614,-896.21,0.00019178,2]
[330401575,1719348642624,-824.82,0.00019178,2]
[330401576,1719348642633,-910.84932152,0.00019178,2]
[330401577,1719348642652,-489.7303052,0.00019178,2]
[330401578,1719348642672,-1227.93037328,0.00019178,2]
[330401579,1719348642682,-1344.86961712,0.00019178,2]
[330401580,1719348642695,-1010.24038288,0.00019178,2]
[330401581,1719348642707,-2451.67290844,0.00019178,2]
[330401582,1719348642718,-671.12709156,0.00019178,2]
[330401584,1719348642727,-500.0,0.00019178,2]
[330401586,1719348642738,-500.0,0.00019178,2]
[330401588,1719348642747,-864.97187017,0.00019178,2]
[330401590,1719348642759,-3462.49812983,0.00019178,2]
[330401592,1719348642769,-500.0,0.00019178,2]
[330401594,1719348642781,-500.0,0.00019178,2]
[330401596,1719348642792,-646.5,0.00019178,2]
[330401598,1719348642801,-577.13,0.00019178,2]
[330401600,1719348642811,-1506.62,0.00019178,2]
[330401602,1719348642821,-602.14,0.00019178,2]
[330401604,1719348642830,-1662.46,0.00019178,2]
[330401606,1719348642840,-500.0,0.00019178,2]
[330401608,1719348642850,-803.23,0.00019178,2]
[330401610,1719348642859,-7288.92187017,0.00019178,2]
[330401613,1719348642870,-7003.39403634,0.00019178,2]
[330401615,1719348642881,-798.65000003,0.00019178,2]
[330401618,1719348642902,-5240.98409346,0.00019178,2]
[330401620,1719348642911,-1062.52,0.00019178,2]
[330401622,1719348642920,-381.5755573,0.00019178,2]
[330401624,1719348642931,-118.4244427,0.00019178,2]
[330401627,1719348642942,-500.0,0.00019178,2]
[330401630,1719348642953,-500.0,0.00019178,2]
[330401631,1719348642964,-165.04555725,0.00019178,2]
[330401634,1719348642975,-334.95444275,0.00019178,2]
[330401636,1719348642985,-452.69990165,0.00019178,2]
[330401638,1719348642997,-47.30009835,0.00019178,2]
[330401640,1719348643007,-431.53990165,0.00019178,2]
[330401642,1719348643019,-1072.79009835,0.00019178,2]
[330401644,1719348643028,-500.0,0.00019178,2]
[330401646,1719348643038,-683.33,0.00019178,2]
[330401648,1719348643048,-1641.11,0.00019178,2]
[330401650,1719348643058,-500.0,0.00019178,2]
[330401652,1719348643067,-2171.84,0.00019178,2]
[330401654,1719348643076,-992.53,0.00019178,2]
[330401656,1719348643086,-660.17,0.00019178,2]
[330401658,1719348643095,-586.9,0.00019178,2]
[330401660,1719348643104,-500.0,0.00019178,2]
[330401662,1719348643113,-500.0,0.00019178,2]
[330401664,1719348643122,-1422.43,0.00019178,2]
[330401666,1719348643132,-1055.04,0.00019178,2]
[330401668,1719348643142,-4058.31,0.00019178,2]
[330401670,1719348643151,-500.0,0.00019178,2]
[330401671,1719348643160,-213.06974905,0.00019178,2]
[330401674,1719348643172,-517.31025095,0.00019178,2]
[330401676,1719348643181,-32.82799827,0.00019178,2]
[330401697,1719348643373,-467.17200173,0.00019178,2]
[330401699,1719348643383,-6.10822896,0.00019178,2]
[330401701,1719348643395,-1071.34177104,0.00019178,2]
[330401703,1719348643405,-500.0,0.00019178,2]
[330401705,1719348643414,-345.95822897,0.00019178,2]
[330401719,1719348643530,-743.32177103,0.00019178,2]
[330401721,1719348643539,-500.0,0.00019178,2]
[330401723,1719348643548,-500.0,0.00019178,2]
[330401725,1719348643557,-500.0,0.00019178,2]
[330401727,1719348643567,-570.35,0.00019178,2]
[330401729,1719348643576,-727.64,0.00019178,2]
[330401731,1719348643585,-500.0,0.00019178,2]
[330401733,1719348643594,-540.15,0.00019178,2]
[330401735,1719348643604,-529.11170038,0.00019178,2]
[330401738,1719348643624,-32.33829962,0.00019178,2]
[330401740,1719348643634,-363.97976913,0.00019178,2]
[330401742,1719348643646,-581.44023087,0.00019178,2]
[330401743,1719348643655,-585.31,0.00019178,2]
[330401744,1719348643664,-4304.33,0.00019178,2]
[330401745,1719348643674,-500.0,0.00019178,2]
[330401747,1719348643683,-800.03,0.00019178,2]
[330401749,1719348643694,-500.0,0.00019178,2]
[330401752,1719348643705,-16.39098846,0.00019178,2]
[330401754,1719348643717,-483.60901154,0.00019178,2]
[330401756,1719348643727,-500.0,0.00019178,2]
[330401758,1719348643737,-679.8,0.00019178,2]
[330401760,1719348643746,-634.72,0.00019178,2]
[330401762,1719348643755,-500.0,0.00019178,2]
[330401764,1719348643764,-684.92,0.00019178,2]
[330401766,1719348643776,-500.0,0.00019178,2]
[330401768,1719348643785,-544.17,0.00019178,2]
[330401770,1719348643794,-500.0,0.00019178,2]
[330401772,1719348643803,-1425.52,0.00019178,2]
[330401774,1719348643812,-1726.28,0.00019178,2]
[330401776,1719348643821,-500.0,0.00019178,2]
[330401778,1719348643830,-500.0,0.00019178,2]
[330401780,1719348643839,-500.0,0.00019178,2]
[330401782,1719348643849,-613.40942661,0.00019178,2]
[330401787,1719348643890,-358.87057339,0.00019178,2]
[330401789,1719348643899,-500.0,0.00019178,2]
[330401791,1719348643909,-500.0,0.00019178,2]
[330401793,1719348643919,-500.0,0.00019178,2]
[330401796,1719348643929,-733.99,0.00019178,2]
[330401800,1719348644234,-500.0,0.00019178,2]
[330401801,1719348644244,-1071.1,0.00019178,2]
[330401802,1719348644253,-500.0,0.00019178,2]
[330401803,1719348644263,-500.0,0.00019178,2]
[330401804,1719348644273,-5059.87,0.00019178,2]
[330401805,1719348644282,-500.0,0.00019178,2]
[330401806,1719348644291,-4963.73,0.00019178,2]
[330401807,1719348644301,-8482.68,0.00019178,2]
[330401808,1719348644310,-501.79,0.00019178,2]
[330401809,1719348644319,-1391.51,0.00019178,2]
[330401810,1719348644328,-469.29952676,0.00019178,2]
[330401811,1719348644338,-500.0,0.00019178,2]
[330401812,1719348644347,-504.12,0.00019178,2]
[330401813,1719348644356,-1503.46,0.00019178,2]
[330401814,1719348644365,-1824.95,0.00019178,2]
[330401815,1719348644374,-524.18,0.00019178,2]
[330401816,1719348644383,-500.0,0.00019178,2]
[330401817,1719348644393,-805.65,0.00019178,2]
[330401818,1719348644403,-2503.57,0.00019178,2]
[330401819,1719348644413,-500.0,0.00019178,2]
[330401820,1719348644422,-1614.85,0.00019178,2]
[330401821,1719348644431,-1562.86,0.00019178,2]
[330401822,1719348644441,-500.0,0.00019178,2]
[330401823,1719348644451,-1050.47,0.00019178,2]
[330401824,1719348644461,-500.0,0.00019178,2]
[330401825,1719348644473,-250.0,0.00019178,2]
[330401826,1719348644483,-500.0,0.00019295,2]
[330401827,1719348644493,-1000.0,0.00019296,2]
[330401828,1719348644504,-500.0,0.00019296,2]
[330401829,1719348644514,-359.0,0.00019305,2]
[330401830,1719348644525,-169.84796896,0.00019352,2]
[330401831,1719348644536,-187.68301247,0.00019352,2]
[330401832,1719348644546,-500.0,0.00019452,2]
[330401833,1719348644556,-500.0,0.00019452,2]
[330401834,1719348644566,-500.0,0.00019452,2]
[330401835,1719348644575,-500.0,0.00019452,2]
[330401836,1719348644585,-500.0,0.00019452,2]
[330401837,1719348644595,-500.0,0.00019452,2]
[330401838,1719348644605,-503.41,0.00019452,2]
[330401839,1719348644615,-500.0,0.00019452,2]
[330401840,1719348644626,-500.0,0.00019452,2]
[330401841,1719348644636,-500.0,0.00019452,2]
[330401842,1719348644645,-500.0,0.00019452,2]
[330401843,1719348644655,-500.0,0.00019452,2]
[330401844,1719348644665,-500.0,0.00019452,2]
[330401845,1719348644675,-602.36,0.00019452,2]
[330401846,1719348644684,-1525.59,0.00019452,2]
[330401847,1719348644696,-500.0,0.00019452,2]
[330401848,1719348644707,-549.25,0.00019452,2]
[330401849,1719348644717,-500.0,0.00019452,2]
[330401850,1719348644726,-500.0,0.00019452,2]
[330401851,1719348644737,-500.0,0.00019452,2]
[330401852,1719348644747,-500.0,0.00019452,2]
[330401853,1719348644757,-500.0,0.00019452,2]
[330401854,1719348644766,-218.03780051,0.00019452,2]
[330401855,1719348644778,-500.0,0.00019452,2]
[330401856,1719348644788,-500.0,0.00019452,2]
[330401857,1719348644798,-500.0,0.00019452,2]
[330401858,1719348644808,-500.0,0.00019452,2]
[330401859,1719348644818,-1221.88,0.00019452,2]
[330401860,1719348644828,-500.0,0.00019452,2]
[330401861,1719348644838,-500.0,0.00019452,2]
[330401862,1719348644847,-500.0,0.00019452,2]
[330401863,1719348644856,-500.0,0.00019452,2]
[330401864,1719348644866,-500.0,0.00019452,2]
[330401865,1719348644876,-500.0,0.00019452,2]
[330401866,1719348644885,-500.0,0.00019452,2]
[330401867,1719348644894,-867.11,0.00019452,2]
[330401868,1719348644904,-500.0,0.00019452,2]
[330401869,1719348644913,-500.0,0.00019452,2]
[330401870,1719348644923,-500.0,0.00019452,2]
[330401871,1719348644932,-500.0,0.00019452,2]
[330401872,1719348644941,-500.0,0.00019452,2]
[330401873,1719348644951,-701.76,0.00019452,2]
[330401874,1719348644960,-500.0,0.00019452,2]
[330401875,1719348644970,-856.02,0.00019452,2]
[330401876,1719348644979,-500.0,0.00019452,2]
[330401877,1719348644988,-500.0,0.00019452,2]
[330401878,1719348644998,-500.0,0.00019452,2]
[330401879,1719348645007,-500.0,0.00019452,2]
[330401880,1719348645017,-500.0,0.00019452,2]
[330401881,1719348645026,-521.91,0.00019452,2]
[330401882,1719348645036,-500.0,0.00019452,2]
[330401883,1719348645045,-500.0,0.00019452,2]
[330401884,1719348645054,-500.0,0.00019452,2]
[330401885,1719348645064,-500.0,0.00019452,2]
[330401886,1719348645074,-500.0,0.00019452,2]
[330401887,1719348645084,-564.6,0.00019452,2]
[330401888,1719348645094,-500.0,0.00019452,2]
[330401889,1719348645104,-538.50142783,0.00019452,2]
[330401890,1719348645114,-500.0,0.00019452,2]
[330401891,1719348645124,-500.0,0.00019452,2]
[330401892,1719348645134,-252.5034728,0.00019452,2]
[330401893,1719348645144,-500.0,0.00019452,2]
[330401894,1719348645153,-500.0,0.00019452,2]
[330401895,1719348645163,-500.0,0.00019452,2]
[330401896,1719348645173,-785.36,0.00019452,2]
[330401897,1719348645183,-500.0,0.00019452,2]
[330401898,1719348645192,-500.0,0.00019452,2]
[330401899,1719348645202,-595.63,0.00019452,2]
[330401900,1719348645211,-500.0,0.00019452,2]
[330401901,1719348645220,-816.41,0.00019452,2]
[330401902,1719348645229,-8583.46,0.00019452,2]
[330401903,1719348645238,-603.65,0.00019452,2]
[330401904,1719348645247,-500.0,0.00019452,2]
[330401905,1719348645257,-500.0,0.00019452,2]
[330401906,1719348645266,-500.0,0.00019452,2]
[330401907,1719348645276,-500.0,0.00019452,2]
[330401908,1719348645285,-500.0,0.00019452,2]
[330401909,1719348645294,-908.09,0.00019452,2]
[330401910,1719348645304,-530.74209942,0.00019452,2]
[330401911,1719348645314,-500.0,0.00019452,2]
[330401912,1719348645323,-638.72,0.00019452,2]
[330401913,1719348645332,-500.0,0.00019452,2]
[330401914,1719348645341,-500.0,0.00019452,2]
[330401915,1719348645351,-500.0,0.00019452,2]
[330401916,1719348645361,-562.69,0.00019452,2]
[330401917,1719348645370,-500.0,0.00019452,2]
[330401918,1719348645380,-1248.63,0.00019452,2]
[330401919,1719348645390,-707.61,0.00019452,2]
[330401920,1719348645399,-119.93137523,0.00019452,2]
[330401921,1719348645417,-314.38440683,0.00019452,2]
[330401922,1719348645435,-65.68421794,0.00019452,2]
[330401923,1719348645444,-241.26578206,0.00019452,2]
[330401935,1719348645967,-258.73421794,0.00019452,2]
[330401936,1719348645976,-995.19,0.00019452,2]
[330401937,1719348645985,-522.94,0.00019452,2]
[330401938,1719348645994,-500.0,0.00019452,2]
[330401939,1719348646004,-434.44986033,0.00019452,2]
[330401940,1719348646013,-500.0,0.00019452,2]
[330401941,1719348646024,-500.0,0.00019452,2]
[330401942,1719348646034,-585.59,0.00019452,2]
[330401943,1719348646044,-186.60485486,0.00019452,2]
[330401944,1719348646124,-317.74514514,0.00019452,2]
[330401945,1719348646134,-37.53929586,0.00019452,2]
[330401946,1719348646185,-462.46070414,0.00019452,2]
[330401947,1719348646194,-1331.01,0.00019452,2]
[330401948,1719348646203,-500.0,0.00019452,2]
[330401949,1719348646213,-500.0,0.00019452,2]
[330401950,1719348646223,-500.0,0.00019452,2]
[330401951,1719348646232,-670.9,0.00019452,2]
[330401952,1719348646242,-500.0,0.00019452,2]
[330401953,1719348646254,-500.0,0.00019452,2]
[330401954,1719348646264,-751.18,0.00019452,2]
[330401955,1719348646273,-726.64,0.00019452,2]
[330401956,1719348646283,-500.0,0.00019452,2]
[330401957,1719348646292,-732.63,0.00019452,2]
[330401958,1719348646301,-500.0,0.00019452,2]
[330401959,1719348646311,-500.0,0.00019452,2]
[330401960,1719348646678,-500.0,0.00019452,2]
[330401961,1719348646690,-500.0,0.00019452,2]
[330401962,1719348646704,-500.0,0.00019452,2]
[330401963,1719348646713,-1299.86,0.00019452,2]
[330401964,1719348646723,-2522.86,0.00019452,2]
[330401965,1719348646733,-274.45929586,0.00019452,2]
[330401966,1719348646746,-313.45070414,0.00019452,2]
[330401967,1719348646756,-992.98,0.00019452,2]
[330401968,1719348646766,-426.45171633,0.00019452,2]
[330401969,1719348646787,-73.54828367,0.00019452,2]
[330401970,1719348646797,-500.0,0.00019452,2]
[330401971,1719348646807,-294.91606789,0.00019452,2]
[330401972,1719348646816,-500.0,0.00019452,2]
[330401973,1719348646826,-582.43,0.00019452,2]
[330401974,1719348646835,-500.0,0.00019452,2]
[330401975,1719348646844,-500.0,0.00019452,2]
[330401976,1719348646854,-500.0,0.00019452,2]
[330401977,1719348646863,-500.0,0.00019452,2]
[330401978,1719348646873,-500.0,0.00019452,2]
[330401979,1719348646884,-536.34,0.00019452,2]
[330401980,1719348646893,-500.0,0.00019452,2]
[330401981,1719348646903,-500.0,0.00019452,2]
[330401982,1719348646912,-500.0,0.00019452,2]
[330401983,1719348646922,-1822.1,0.00019452,2]
[330401984,1719348646931,-500.0,0.00019452,2]
[330401985,1719348646940,-500.0,0.00019452,2]
[330401986,1719348646949,-834.21,0.00019452,2]
[330401987,1719348646958,-500.0,0.00019452,2]
[330401988,1719348646967,-500.0,0.00019452,2]
[330401989,1719348646976,-500.0,0.00019452,2]
[330401990,1719348646985,-1525.05,0.00019452,2]
[330401991,1719348646994,-500.0,0.00019452,2]
[330401992,1719348647003,-898.74,0.00019452,2]
[330401993,1719348647013,-862.52,0.00019452,2]
[330401994,1719348647023,-1938.31,0.00019452,2]
[330401995,1719348647032,-500.0,0.00019452,2]
[330401996,1719348647042,-500.0,0.00019452,2]
[330401997,1719348647052,-500.0,0.00019452,2]
[330401998,1719348647061,-500.0,0.00019452,2]
[330401999,1719348647071,-500.0,0.00019452,2]
[330402000,1719348647080,-634.72,0.00019452,2]
[330402001,1719348647089,-500.0,0.00019452,2]
[330402002,1719348647099,-1041.87,0.00019452,2]
[330402003,1719348647108,-500.0,0.00019452,2]
[330402004,1719348647117,-643.49,0.00019452,2]
[330402005,1719348647126,-548.63,0.00019452,2]
[330402006,1719348647136,-500.0,0.00019452,2]
[330402007,1719348647145,-500.0,0.00019452,2]
[330402008,1719348647154,-500.0,0.00019452,2]
[330402009,1719348647163,-500.0,0.00019452,2]
[330402010,1719348647173,-500.0,0.00019452,2]
[330402011,1719348647182,-500.0,0.00019452,2]
[330402012,1719348647192,-500.0,0.00019452,2]
[330402013,1719348647201,-500.0,0.00019452,2]
[330402014,1719348647211,-1056.16,0.00019452,2]
[330402015,1719348647220,-1150.42,0.00019452,2]
[330402016,1719348647229,-500.0,0.00019452,2]
[330402017,1719348647238,-500.0,0.00019452,2]
[330402018,1719348647248,-542.93,0.00019452,2]
[330402019,1719348647257,-880.94,0.00019452,2]
[330402020,1719348647266,-2211.54,0.00019452,2]
[330402021,1719348647275,-500.0,0.00019452,2]
[330402023,1719348647285,-1403.99,0.00019452,2]
[330402024,1719348647294,-903.87,0.00019452,2]
[330402025,1719348647303,-500.0,0.00019452,2]
[330402026,1719348647313,-500.0,0.00019452,2]
[330402027,1719348647322,-500.0,0.00019452,2]
[330402029,1719348647332,-500.0,0.00019452,2]
[330402031,1719348647341,-2294.19,0.00019452,2]
[330402033,1719348647350,-1065.56,0.00019452,2]
[330402035,1719348647361,-500.0,0.00019452,2]
[330402037,1719348647370,-599.42,0.00019452,2]
[330402039,1719348647379,-1045.12,0.00019452,2]
[330402041,1719348647388,-500.0,0.00019452,2]
[330402043,1719348647398,-500.0,0.00019452,2]
[330402046,1719348647407,-676.23,0.00019452,2]
[330402049,1719348647416,-500.0,0.00019452,2]
[330402051,1719348647426,-500.0,0.00019452,2]
[330402054,1719348647435,-500.0,0.00019452,2]
[330402057,1719348647444,-870.85,0.00019452,2]
[330402059,1719348647454,-3430.31,0.00019452,2]
[330402061,1719348647463,-500.0,0.00019452,2]
[330402064,1719348647473,-500.0,0.00019452,2]
[330402067,1719348647483,-590.3,0.00019452,2]
[330402069,1719348647492,-500.0,0.00019452,2]
[330402071,1719348647501,-977.56,0.00019452,2]
[330402073,1719348647510,-1543.22,0.00019452,2]
[330402075,1719348647520,-500.0,0.00019452,2]
[330402077,1719348647530,-897.82,0.00019452,2]
[330402079,1719348647539,-794.15,0.00019452,2]
[330402081,1719348647549,-786.86,0.00019452,2]
[330402083,1719348647558,-894.63,0.00019452,2]
[330402085,1719348647568,-500.0,0.00019452,2]
[330402087,1719348647577,-500.0,0.00019452,2]
[330402089,1719348647587,-500.0,0.00019452,2]
[330402091,1719348647596,-1706.03,0.00019452,2]
[330402093,1719348647606,-500.0,0.00019452,2]
[330402095,1719348647616,-528.74478853,0.00019452,2]
[330402097,1719348647626,-500.0,0.00019452,2]
[330402099,1719348647635,-500.0,0.00019452,2]
[330402101,1719348647644,-761.47,0.00019452,2]
[330402103,1719348647653,-906.13,0.00019452,2]
[330402105,1719348647662,-1208.0,0.00019452,2]
[330402107,1719348647672,-1219.48,0.00019452,2]
[330402109,1719348647681,-513.38,0.00019452,2]
[330402111,1719348647691,-713.81,0.00019452,2]
[330402113,1719348647706,-500.0,0.00019452,2]
[330402115,1719348647715,-500.0,0.00019452,2]
[330402117,1719348647724,-500.0,0.00019452,2]
[330402119,1719348647733,-2355.6,0.00019452,2]
[330402121,1719348647745,-1533.88,0.00019452,2]
[330402123,1719348647754,-734.82,0.00019452,2]
[330402125,1719348647763,-500.0,0.00019452,2]
[330402127,1719348647774,-500.0,0.00019452,2]
[330402129,1719348647785,-500.0,0.00019452,2]
[330402131,1719348647794,-500.0,0.00019452,2]
[330402134,1719348647804,-500.0,0.00019452,2]
[330402135,1719348647813,-500.0,0.00019452,2]
[330402137,1719348647823,-1167.52,0.00019452,2]
[330402140,1719348647834,-1606.25,0.00019452,2]
[330402142,1719348647843,-679.37,0.00019452,2]
[330402144,1719348647853,-548.12,0.00019452,2]
[330402146,1719348647862,-3026.55,0.00019452,2]
[330402148,1719348647871,-1563.17,0.00019452,2]
[330402150,1719348647880,-500.0,0.00019452,2]
[330402152,1719348647889,-544.64,0.00019452,2]
[330402153,1719348647898,-500.0,0.00019452,2]
[330402155,1719348647908,-531.0,0.00019452,2]
[330402157,1719348647918,-500.0,0.00019452,2]
[330402159,1719348647927,-500.0,0.00019452,2]
[330402161,1719348647937,-2423.3,0.00019452,2]
[330402163,1719348647946,-940.6,0.00019452,2]
[330402165,1719348647956,-868.64,0.00019452,2]
[330402167,1719348647965,-901.6,0.00019452,2]
[330402169,1719348647974,-500.0,0.00019452,2]
[330402171,1719348647984,-668.21,0.00019452,2]
[330402173,1719348647993,-794.5,0.00019452,2]
[330402175,1719348648002,-500.0,0.00019452,2]
[330402177,1719348648011,-1769.04,0.00019452,2]
[330402179,1719348648020,-1533.56,0.00019452,2]
[330402181,1719348648029,-500.0,0.00019452,2]
[330402183,1719348648039,-767.13,0.00019452,2]
[330402185,1719348648048,-1138.26,0.00019452,2]
[330402187,1719348648058,-500.0,0.00019452,2]
[330402189,1719348648067,-500.0,0.00019452,2]
[330402191,1719348648077,-1225.01,0.00019452,2]
[330402193,1719348648086,-715.3,0.00019452,2]
[330402194,1719348648096,-500.0,0.00019452,2]
[330402196,1719348648106,-1418.98,0.00019452,2]
[330402198,1719348648115,-4337.53,0.00019452,2]
[330402200,1719348648124,-500.0,0.00019452,2]
[330402202,1719348648133,-500.0,0.00019452,2]
[330402204,1719348648141,-500.93,0.00019452,2]
[330402206,1719348648150,-500.0,0.00019452,2]
[330402208,1719348648160,-1282.91,0.00019452,2]
[330402210,1719348648169,-500.0,0.00019452,2]
[330402212,1719348648179,-626.97,0.00019452,2]
[330402214,1719348648188,-916.94,0.00019452,2]
[330402216,1719348648196,-500.0,0.00019452,2]
[330402218,1719348648206,-652.6,0.00019452,2]
[330402220,1719348648215,-500.0,0.00019452,2]
[330402222,1719348648224,-651.11,0.00019452,2]
[330402224,1719348648234,-500.0,0.00019452,2]
[330402226,1719348648243,-1098.52,0.00019452,2]
[330402228,1719348648252,-500.0,0.00019452,2]
[330402230,1719348648261,-4300.18,0.00019452,2]
[330402232,1719348648270,-721.59,0.00019452,2]
[330402234,1719348648279,-1458.27,0.00019452,2]
[330402236,1719348648289,-1379.99,0.00019452,2]
[330402238,1719348648298,-674.79,0.00019452,2]
[330402240,1719348648307,-500.0,0.00019452,2]
[330402242,1719348648316,-1634.72,0.00019452,2]
[330402244,1719348648325,-500.0,0.00019452,2]
[330402246,1719348648334,-591.27,0.00019452,2]
[330402248,1719348648343,-1022.77,0.00019452,2]
[330402250,1719348648351,-500.0,0.00019452,2]
[330402251,1719348648362,-1393.17,0.00019452,2]
[330402253,1719348648371,-500.0,0.00019452,2]
[330402256,1719348648381,-565.35,0.00019452,2]
[330402258,1719348648390,-1481.83,0.00019452,2]
[330402259,1719348648399,-500.0,0.00019452,2]
[330402262,1719348648409,-500.0,0.00019452,2]
[330402263,1719348648418,-660.25,0.00019452,2]
[330402265,1719348648428,-1313.96,0.00019452,2]
[330402267,1719348648437,-9683.67,0.00019452,2]
[330402269,1719348648446,-500.0,0.00019452,2]
[330402271,1719348648456,-500.0,0.00019452,2]
[330402273,1719348648465,-602.53,0.00019452,2]
[330402275,1719348648475,-500.0,0.00019452,2]
[330402277,1719348648484,-1066.37,0.00019452,2]
[330402279,1719348648493,-566.8,0.00019452,2]
[330402281,1719348648502,-500.0,0.00019452,2]
[330402283,1719348648512,-531.66,0.00019452,2]
[330402285,1719348648522,-500.0,0.00019452,2]
[330402287,1719348648531,-737.39,0.00019452,2]
[330402289,1719348648540,-500.0,0.00019452,2]
[330402291,1719348648550,-500.0,0.00019452,2]
[330402293,1719348648558,-500.0,0.00019452,2]
[330402295,1719348648567,-1525.52,0.00019452,2]
[330402297,1719348648576,-500.0,0.00019452,2]
[330402299,1719348648585,-533.60964071,0.00019452,2]
[330402301,1719348648594,-1125.37,0.00019452,2]
[330402303,1719348648604,-500.0,0.00019452,2]
[330402305,1719348648613,-702.7,0.00019452,2]
[330402307,1719348648622,-1150.13,0.00019452,2]
[330402309,1719348648631,-500.0,0.00019452,2]
[330402311,1719348648640,-500.0,0.00019452,2]
[330402313,1719348648649,-500.0,0.00019452,2]
[330402315,1719348648659,-500.0,0.00019452,2]
[330402317,1719348648668,-500.0,0.00019452,2]
[330402319,1719348648680,-3238.22,0.00019452,2]
[330402321,1719348648689,-1653.51,0.00019452,2]
[330402323,1719348648703,-500.0,0.00019452,2]
[330402324,1719348648712,-500.0,0.00019452,2]
[330402326,1719348648722,-683.09,0.00019452,2]
[330402328,1719348648731,-1081.86,0.00019452,2]
[330402330,1719348648742,-500.0,0.00019452,2]
[330402332,1719348648751,-500.0,0.00019452,2]
[330402334,1719348648760,-980.9,0.00019452,2]
[330402335,1719348648769,-500.0,0.00019452,2]
[330402336,1719348648780,-500.0,0.00019452,2]
[330402337,1719348648788,-1456.87,0.00019452,2]
[330402338,1719348648798,-1207.43,0.00019452,2]
[330402339,1719348648807,-610.27,0.00019452,2]
[330402340,1719348648816,-500.0,0.00019452,2]
[330402341,1719348648826,-500.0,0.00019452,2]
[330402342,1719348648835,-1706.41,0.00019452,2]
[330402343,1719348648844,-1039.59,0.00019452,2]
[330402344,1719348648853,-500.0,0.00019452,2]
[330402345,1719348648862,-607.22,0.00019452,2]
[330402347,1719348648872,-532.79,0.00019452,2]